[Event "2nd Irena Warakomska Memorial-A"]
[Site "Suwalki"]
[Date "2018.08.07"]
[Round "8"]
[White "Krzywda, Andrzej"]
[Black "Paprocki, Jaroslaw"]
[Result "0-1"]
[ECO "C54"]
[WhiteElo "2258"]
[BlackElo "2143"]
[Annotator "NA"]
[PlyCount "114"]
[EventDate "2018.08.01"]
[EventType "swiss"]
[EventCountry "POL"]
[SourceTitle "playchess.com"]
[Source "ChessBase"]
[SourceQuality "1"]
[TimeControl "40/5400+30:1800+30"]

1. e4 {[%emt 0:00:00]} e5 {[%emt 0:00:00]} 2. Nf3 {[%emt 0:00:00]} Nc6 {[%emt 0:00:00]} 3. Bc4 {[%emt 0:00:13]} Bc5 {[%emt 0:00:00]} 4. c3 {[%emt 0:00:04]} Nf6 {[%emt 0:00:00]} 5. d3 {[%emt 0:00:03]} d6 {[%emt 0:00:41]} 6. O-O {[%emt 0:00:18]} a6 {[%emt 0:01:36]} 7. Bb3 {[%emt 0:00:08]} Ba7 {[%emt 0:00:24]} 8. Nbd2 {[%emt 0:00:43]} h6 {[%emt 0:06:47]} 9. Re1 {[%emt 0:03:57]} O-O {[%emt 0:02:09]} 10. Nf1 {[%emt 0:01:36]} Re8 {[%emt 0:01:11]} 11. Ng3 {[%emt 0:01:34]} Be6 {[%emt 0:00:28]} 12. h3 {[%emt 0:03:05]} d5 {[%emt 0:03:32]} 13. exd5 {[%emt 0:01:35]} Bxd5 {[%emt 0:07:49]} 14. Bc2 {[%emt 0:00:26]} Qd7 {[%emt 0:05:25]} 15. Be3 {[%emt 0:05:27]} Bxe3 {[%emt 0:02:04]} 16. Rxe3 {[%emt 0:00:07]} Rad8 {[%emt 0:16:49]} 17. Qe2 {[%emt 0:03:23]} Qd6 {[%emt 0:13:10]} 18. Nf5 {[%emt 0:04:57]} Qd7 {[%emt 0:00:02]} 19. Ng3 {[%emt 0:01:06]} Bxf3 {[%emt 0:02:38]} 20. Qxf3 {[%emt 0:00:26]} Nd5 {[%emt 0:00:38]} 21. Ree1 {[%emt 0:06:32]} Re6 {[%emt 0:06:21]} 22. Ne4 {[%emt 0:04:28]} b6 {[%emt 0:01:46]} 23. Rad1 {[%emt 0:01:40]} g6 {[%emt 0:07:28]} 24. Bb3 {[%emt 0:05:51]} Kg7 {[%emt 0:00:15]} 25. Bc4 {[%emt 0:04:21]} f5 {[%emt 0:03:27]} 26. Bxa6 {[%emt 0:04:59]} Nde7 {[%emt 0:09:28]} 27. Ng3 {[%emt 0:07:52]} Rd6 {[%emt 0:00:34]} 28. Ra1 {[%emt 0:04:22]} Nb8 {[%emt 0:01:10]} 29. Bc4 {[%emt 0:08:17]} b5 {[%emt 0:00:43]} 30. Bb3 {[%emt 0:00:14]} Rxd3 {[%emt 0:00:34]} 31. Qb7 {[%emt 0:03:32]} Qc6 {[%emt 0:01:57]} 32. Qxc6 {[%emt 0:02:10]} Nbxc6 {[%emt 0:00:05]} 33. Nf1 {[%emt 0:02:59]} Kf6 {[%emt 0:01:31]} 34. a4 {[%emt 0:04:50]} bxa4 {[%emt 0:00:59]} 35. Rxa4 {[%emt 0:00:46]} e4 {[%emt 0:02:43]} 36. Ne3 {[%emt 0:04:56]} Ne5 {[%emt 0:00:20]} 37. Ra6+ {[%emt 0:03:23]} R8d6 {[%emt 0:02:11]} 38. Rea1 {[%emt 0:01:30]} f4 {[%emt 0:00:53]} 39. Nc2 {[%emt 0:02:12]} c5 {[%emt 0:00:34]} 40. Ne1 {[%emt 0:00:00]} Rd2 {[%emt 0:00:00]} 41. Rxd6+ {[%emt 0:09:45]} Rxd6 {[%emt 0:00:54]} 42. Ra4 {[%emt 0:00:44]} c4 {[%emt 0:06:27]} 43. Bc2 {[%emt 0:07:19]} Rd2 {[%emt 0:10:21]} 44. Ra6+ {[%emt 0:02:46]} Kf7 {[%emt 0:00:35]} 45. Ba4 {[%emt 0:12:58]} Rxb2 {[%emt 0:03:03]} 46. Kf1 {[%emt 0:02:38]} Nd5 {[%emt 0:05:27]} 47. Ra5 {[%emt 0:01:01]} Ke6 {[%emt 0:01:22]} 48. Bb5 {[%emt 0:01:56]} Nxc3 {[%emt 0:02:22]} 49. Ra6+ {[%emt 0:00:44]} Kd5 {[%emt 0:00:23]} 50. Be8 {[%emt 0:00:13]} Nd1 {[%emt 0:02:24]} 51. Ra5+ {[%emt 0:00:27]} Kd4 {[%emt 0:00:11]} 52. Ba4 {[%emt 0:00:20]} Rxf2+ {[%emt 0:02:01]} 53. Kg1 {[%emt 0:00:01]} Ra2 {[%emt 0:00:15]} 54. Nc2+ {[%emt 0:00:28]} Kc3 {[%emt 0:00:21]} 55. Ne1 {[%emt 0:01:26]} f3 {[%emt 0:01:05]} 56. Rxe5 {[%emt 0:00:37]} f2+ {[%emt 0:00:15]} 57. Kf1 {[%emt 0:00:02]} Ne3# 0-1

[Event "2nd Irena Warakomska Memorial-A"]
[Site "Suwalki"]
[Date "2018.08.07"]
[Round "8"]
[White "Tomaszewski, Roman"]
[Black "Ulanowski, Karol"]
[Result "1/2-1/2"]
[ECO "A16"]
[WhiteElo "2258"]
[BlackElo "2149"]
[Annotator "NA"]
[PlyCount "118"]
[EventDate "2018.08.01"]
[EventType "swiss"]
[EventCountry "POL"]
[SourceTitle "playchess.com"]
[Source "ChessBase"]
[SourceQuality "1"]
[TimeControl "40/5400+30:1800+30"]

1. c4 {[%emt 0:00:00]} Nf6 {[%emt 0:00:00]} 2. Nc3 {[%emt 0:00:00]} g6 {[%emt 0:00:00]} 3. g3 {[%emt 0:00:00]} Bg7 {[%emt 0:00:00]} 4. Bg2 {[%emt 0:00:00]} O-O {[%emt 0:00:02]} 5. e4 {[%emt 0:00:10]} e5 {[%emt 0:00:05]} 6. d3 {[%emt 0:00:09]} c6 {[%emt 0:01:04]} 7. Nge2 Na6 {[%emt 0:02:21]} 8. O-O {[%emt 0:14:48]} Nc7 {[%emt 0:02:46]} 9. d4 {[%emt 0:08:28]} d6 {[%emt 0:01:17]} 10. h3 {[%emt 0:16:25]} b5 {[%emt 0:08:25]} 11. c5 b4 {[%emt 0:00:06]} 12. cxd6 {[%emt 0:04:45]} Qxd6 13. dxe5 {[%emt 0:20:46]} Qxe5 {[%emt 0:01:04]} 14. Bf4 {[%emt 0:00:03]} Qa5 {[%emt 0:00:49]} 15. Qa4 {[%emt 0:00:05]} Qxa4 {[%emt 0:01:18]} 16. Nxa4 {[%emt 0:00:56]} Nb5 {[%emt 0:03:31]} 17. Rac1 {[%emt 0:00:12]} Be6 {[%emt 0:21:05]} 18. b3 {[%emt 0:07:01]} Rac8 {[%emt 0:03:02]} 19. Bd2 {[%emt 0:02:00]} a5 {[%emt 0:07:03]} 20. Be3 {[%emt 0:10:02]} Rfd8 21. Nb6 Rc7 {[%emt 0:02:10]} 22. Bf4 {[%emt 0:00:44]} Rb7 {[%emt 0:01:07]} 23. Rxc6 {[%emt 0:01:14]} Na7 24. Rc7 Rxc7 {[%emt 0:03:18]} 25. Bxc7 {[%emt 0:00:33]} Rd2 {[%emt 0:00:06]} 26. Nf4 {[%emt 0:03:46]} Rxa2 {[%emt 0:11:29]} 27. Rd1 {[%emt 0:04:50]} Bf8 {[%emt 0:00:05]} 28. Nxe6 {[%emt 0:02:14]} fxe6 29. e5 Ne8 {[%emt 0:01:39]} 30. Bb8 {[%emt 0:00:33]} Nb5 31. Bc6 {[%emt 0:02:34]} Nec7 {[%emt 0:01:15]} 32. Rd8 Rc2 {[%emt 0:06:41]} 33. Be4 {[%emt 0:01:02]} Rc1+ {[%emt 0:00:23]} 34. Kg2 {[%emt 0:00:03]} Kg7 {[%emt 0:01:57]} 35. Rd7+ {[%emt 0:00:39]} Kg8 36. h4 {[%emt 0:00:59]} Na6 {[%emt 0:07:54]} 37. Rd8 {[%emt 0:02:34]} Kf7 38. Bd6 Nxd6 {[%emt 0:04:25]} 39. exd6 {[%emt 0:00:31]} Rd1 {[%emt 0:00:12]} 40. Rd7+ Kf6 {[%emt 0:00:00]} 41. Ra7 {[%emt 0:01:05]} Nc5 42. Nd7+ {[%emt 0:22:25]} Nxd7 {[%emt 0:03:56]} 43. Rxd7 {[%emt 0:00:00]} h5 {[%emt 0:12:49]} 44. Ra7 Bxd6 {[%emt 0:00:04]} 45. Rxa5 {[%emt 0:00:33]} Rd2 46. Rg5 {[%emt 0:03:12]} Rb2 {[%emt 0:00:34]} 47. Bxg6 {[%emt 0:00:30]} Rxb3 {[%emt 0:00:13]} 48. Bxh5 Be5 {[%emt 0:03:56]} 49. Rg6+ {[%emt 0:02:56]} Ke7 50. Rg4 {[%emt 0:01:13]} Rb2 {[%emt 0:01:05]} 51. Re4 {[%emt 0:00:21]} Bc3 {[%emt 0:00:42]} 52. Bg4 {[%emt 0:00:45]} e5 {[%emt 0:00:05]} 53. Bf5 Bd4 54. g4 {[%emt 0:02:35]} Rxf2+ {[%emt 0:01:15]} 55. Kg3 {[%emt 0:00:01]} Rf1 {[%emt 0:00:11]} 56. Kg2 Rc1 {[%emt 0:01:56]} 57. g5 {[%emt 0:01:49]} b3 58. Rg4 {[%emt 0:02:05]} Kf8 {[%emt 0:08:45]} 59. Rg3 Rg1+ 1/2-1/2

[Event "2nd Irena Warakomska Memorial-A"]
[Site "Suwalki"]
[Date "2018.08.07"]
[Round "8"]
[White "Mulet, Piotr"]
[Black "Harshini, A."]
[Result "0-1"]
[ECO "C30"]
[WhiteElo "2238"]
[BlackElo "2124"]
[Annotator "NA"]
[PlyCount "48"]
[EventDate "2018.08.01"]
[EventType "swiss"]
[EventCountry "POL"]
[SourceTitle "playchess.com"]
[Source "ChessBase"]
[SourceQuality "1"]
[TimeControl "40/5400+30:1800+30"]

1. e4 {[%emt 0:00:00]} e5 {[%emt 0:00:00]} 2. f4 {[%emt 0:00:00]} Nc6 {[%emt 0:00:52]} 3. Nf3 {[%emt 0:01:39]} d6 {[%emt 0:01:37]} 4. Bc4 {[%emt 0:03:30]} Bg4 {[%emt 0:01:38]} 5. O-O {[%emt 0:03:33]} Qd7 {[%emt 0:00:22]} 6. h3 {[%emt 0:03:44]} Bxf3 {[%emt 0:01:07]} 7. Qxf3 {[%emt 0:00:07]} O-O-O {[%emt 0:00:29]} 8. d3 {[%emt 0:04:39]} Kb8 {[%emt 0:01:45]} 9. Nc3 {[%emt 0:02:18]} f5 {[%emt 0:02:06]} 10. fxe5 {[%emt 0:03:09]} Nd4 {[%emt 0:05:08]} 11. Qf2 {[%emt 0:00:34]} dxe5 {[%emt 0:00:05]} 12. exf5 {[%emt 0:00:32]} Bc5 {[%emt 0:01:18]} 13. Be3 {[%emt 0:00:29]} Rf8 {[%emt 0:02:35]} 14. g4 {[%emt 0:22:01]} h5 {[%emt 0:00:35]} 15. Ne4 {[%emt 0:00:14]} Bb6 {[%emt 0:01:56]} 16. c3 {[%emt 0:00:09]} hxg4 {[%emt 0:17:19]} 17. cxd4 {[%emt 0:06:26]} Rxh3 {[%emt 0:00:15]} 18. Nc5 {[%emt 0:04:12]} Bxc5 {[%emt 0:02:16]} 19. dxc5 {[%emt 0:00:08]} Ne7 {[%emt 0:00:09]} 20. Rae1 {[%emt 0:08:13]} Rfh8 {[%emt 0:01:00]} 21. Qg2 {[%emt 0:00:21]} Nxf5 {[%emt 0:00:49]} 22. Bf2 {[%emt 0:02:41]} g3 {[%emt 0:02:17]} 23. Be3 {[%emt 0:00:15]} Nxe3 {[%emt 0:00:21]} 24. Rxe3 {[%emt 0:00:11]} Rh1+ {[%emt 0:00:03]} 0-1

[Event "2nd Irena Warakomska Memorial-A"]
[Site "Suwalki"]
[Date "2018.08.07"]
[Round "8"]
[White "Bukojemski, Adam"]
[Black "Popiol, Michal"]
[Result "0-1"]
[ECO "C11"]
[WhiteElo "2233"]
[BlackElo "2126"]
[Annotator "NA"]
[PlyCount "128"]
[EventDate "2018.08.01"]
[EventType "swiss"]
[EventCountry "POL"]
[SourceTitle "playchess.com"]
[Source "ChessBase"]
[SourceQuality "1"]
[TimeControl "40/5400+30:1800+30"]

1. e4 {[%emt 0:00:00]} e6 {[%emt 0:00:00]} 2. d4 {[%emt 0:00:00]} d5 {[%emt 0:00:00]} 3. Nc3 {[%emt 0:00:00]} Nf6 {[%emt 0:00:00]} 4. e5 {[%emt 0:00:13]} Nfd7 {[%emt 0:00:00]} 5. f4 {[%emt 0:00:07]} c5 {[%emt 0:00:00]} 6. Nf3 {[%emt 0:00:08]} Nc6 {[%emt 0:00:02]} 7. Be3 {[%emt 0:00:08]} a6 {[%emt 0:00:28]} 8. Qd2 {[%emt 0:00:37]} b5 {[%emt 0:00:05]} 9. dxc5 {[%emt 0:00:41]} Bxc5 {[%emt 0:00:06]} 10. Bd3 {[%emt 0:00:28]} Qb6 {[%emt 0:00:24]} 11. Bf2 {[%emt 0:00:35]} Ra7 {[%emt 0:15:20]} 12. O-O {[%emt 0:01:33]} Bxf2+ {[%emt 0:01:20]} 13. Rxf2 {[%emt 0:00:09]} Nc5 {[%emt 0:04:23]} 14. a3 {[%emt 0:06:11]} b4 {[%emt 0:05:24]} 15. axb4 {[%emt 0:02:24]} Qxb4 {[%emt 0:01:49]} 16. f5 {[%emt 0:03:01]} exf5 {[%emt 0:06:20]} 17. Nxd5 {[%emt 0:04:02]} Qxd2 {[%emt 0:03:48]} 18. Rxd2 {[%emt 0:01:22]} Be6 {[%emt 0:01:25]} 19. c4 {[%emt 0:02:48]} Nb3 {[%emt 0:03:01]} 20. Rdd1 {[%emt 0:03:38]} Nxa1 {[%emt 0:00:27]} 21. Rxa1 {[%emt 0:00:02]} O-O {[%emt 0:00:51]} 22. Bc2 {[%emt 0:02:32]} Rb8 {[%emt 0:02:13]} 23. Ba4 {[%emt 0:00:39]} Nb4 {[%emt 0:12:48]} 24. Nxb4 {[%emt 0:05:52]} Rxb4 {[%emt 0:00:06]} 25. b3 {[%emt 0:00:04]} g6 {[%emt 0:02:28]} 26. Rd1 {[%emt 0:00:37]} Rbb7 {[%emt 0:02:18]} 27. Rd8+ {[%emt 0:01:47]} Kg7 {[%emt 0:00:08]} 28. Rd6 {[%emt 0:11:25]} Bd7 {[%emt 0:01:47]} 29. Bxd7 {[%emt 0:00:02]} Rxd7 {[%emt 0:00:05]} 30. c5 {[%emt 0:00:04]} Re7 {[%emt 0:06:15]} 31. Nd4 {[%emt 0:03:18]} Rac7 {[%emt 0:02:39]} 32. b4 {[%emt 0:01:02]} a5 {[%emt 0:06:05]} 33. Nc6 {[%emt 0:00:51]} Rxc6 {[%emt 0:02:03]} 34. Rxc6 {[%emt 0:00:01]} axb4 {[%emt 0:00:05]} 35. Rb6 {[%emt 0:01:34]} Rxe5 {[%emt 0:00:08]} 36. Rxb4 {[%emt 0:01:27]} Rxc5 {[%emt 0:00:06]} 37. Kf2 {[%emt 0:00:16]} Re5 {[%emt 0:06:51]} 38. Kf3 {[%emt 0:01:01]} Kf6 {[%emt 0:00:34]} 39. Ra4 {[%emt 0:01:21]} h6 {[%emt 0:02:15]} 40. h3 {[%emt 0:00:00]} g5 {[%emt 0:00:00]} 41. Ra8 {[%emt 0:03:52]} Kg7 {[%emt 0:05:07]} 42. Rb8 {[%emt 0:02:36]} Ra5 {[%emt 0:01:24]} 43. Rb6 {[%emt 0:00:13]} h5 {[%emt 0:07:12]} 44. Rb3 {[%emt 0:01:24]} Re5 {[%emt 0:04:58]} 45. Rb8 {[%emt 0:00:21]} Ra5 {[%emt 0:03:48]} 46. Rb3 {[%emt 0:00:37]} h4 {[%emt 0:00:26]} 47. Rb4 {[%emt 0:02:32]} Ra3+ {[%emt 0:00:59]} 48. Kf2 {[%emt 0:00:02]} Rg3 {[%emt 0:02:06]} 49. Rb5 {[%emt 0:00:18]} Kg6 {[%emt 0:03:19]} 50. Rb6+ {[%emt 0:00:26]} f6 {[%emt 0:01:05]} 51. Rb8 {[%emt 0:00:04]} g4 {[%emt 0:00:45]} 52. Rg8+ {[%emt 0:01:12]} Kf7 {[%emt 0:00:22]} 53. Rh8 {[%emt 0:00:16]} gxh3 {[%emt 0:00:32]} 54. gxh3 {[%emt 0:00:17]} Rxh3 {[%emt 0:00:11]} 55. Rh7+ {[%emt 0:00:39]} Kg6 {[%emt 0:01:27]} 56. Rh8 {[%emt 0:00:03]} Kg5 {[%emt 0:00:08]} 57. Kg2 {[%emt 0:00:12]} Rg3+ {[%emt 0:00:15]} 58. Kh2 {[%emt 0:00:13]} f4 {[%emt 0:02:07]} 59. Rg8+ {[%emt 0:00:23]} Kf5 {[%emt 0:00:06]} 60. Rh8 {[%emt 0:00:04]} Rg4 {[%emt 0:01:13]} 61. Rh5+ {[%emt 0:00:58]} Ke4 {[%emt 0:00:08]} 62. Kh3 {[%emt 0:00:08]} f5 {[%emt 0:00:12]} 63. Rh8 {[%emt 0:00:05]} f3 {[%emt 0:00:27]} 64. Re8+ {[%emt 0:00:31]} Kf4 {[%emt 0:00:30]} 0-1

[Event "2nd Irena Warakomska Memorial-A"]
[Site "Suwalki"]
[Date "2018.08.07"]
[Round "8"]
[White "Godzwon, Iwo"]
[Black "Cukrowski, Filip"]
[Result "1/2-1/2"]
[ECO "B35"]
[WhiteElo "2222"]
[BlackElo "2404"]
[Annotator "NA"]
[PlyCount "53"]
[EventDate "2018.08.01"]
[EventType "swiss"]
[EventCountry "POL"]
[SourceTitle "playchess.com"]
[Source "ChessBase"]
[SourceQuality "1"]
[TimeControl "40/5400+30:1800+30"]

1. e4 {[%emt 0:00:00]} c5 {[%emt 0:01:36]} 2. Nf3 {[%emt 0:00:00]} Nc6 {[%emt 0:00:06]} 3. d4 {[%emt 0:00:00]} cxd4 {[%emt 0:00:08]} 4. Nxd4 {[%emt 0:00:00]} g6 {[%emt 0:00:07]} 5. Nc3 {[%emt 0:01:13]} Bg7 {[%emt 0:00:12]} 6. Be3 {[%emt 0:00:03]} Nf6 {[%emt 0:00:43]} 7. Bc4 {[%emt 0:00:09]} Qa5 {[%emt 0:00:16]} 8. O-O {[%emt 0:00:33]} O-O {[%emt 0:00:33]} 9. Bb3 {[%emt 0:00:38]} d6 {[%emt 0:01:01]} 10. h3 {[%emt 0:00:06]} Bd7 {[%emt 0:08:18]} 11. Re1 {[%emt 0:04:42]} Rac8 {[%emt 0:11:20]} 12. f4 {[%emt 0:04:17]} Rfd8 {[%emt 0:18:07]} 13. Qf3 {[%emt 0:07:04]} Qh5 {[%emt 0:27:42]} 14. Qf2 {[%emt 0:05:45]} Na5 {[%emt 0:03:49]} 15. e5 {[%emt 0:07:00]} dxe5 {[%emt 0:00:41]} 16. fxe5 {[%emt 0:00:03]} Qxe5 {[%emt 0:00:07]} 17. Nf3 {[%emt 0:00:26]} Qh5 {[%emt 0:01:24]} 18. Bxa7 {[%emt 0:02:14]} Nxb3 {[%emt 0:00:06]} 19. axb3 {[%emt 0:00:48]} Nd5 {[%emt 0:03:47]} 20. Nxd5 {[%emt 0:08:34]} Qxd5 {[%emt 0:00:06]} 21. c4 {[%emt 0:01:21]} Qf5 {[%emt 0:01:37]} 22. Bb6 {[%emt 0:02:11]} Re8 {[%emt 0:02:25]} 23. Ra5 {[%emt 0:00:36]} Qf4 {[%emt 0:01:54]} 24. Be3 {[%emt 0:02:59]} Qc7 {[%emt 0:00:37]} 25. Bb6 {[%emt 0:00:15]} Qf4 {[%emt 0:01:03]} 26. Be3 {[%emt 0:00:33]} Qc7 {[%emt 0:04:36]} 27. Bb6 {[%emt 0:14:49]} 1/2-1/2

[Event "2nd Irena Warakomska Memorial-A"]
[Site "Suwalki"]
[Date "2018.08.07"]
[Round "8"]
[White "Sliwicki, Damian"]
[Black "Goluch, Piotr"]
[Result "1-0"]
[ECO "B11"]
[WhiteElo "2220"]
[BlackElo "2301"]
[Annotator "NA"]
[PlyCount "173"]
[EventDate "2018.08.01"]
[EventType "swiss"]
[EventCountry "POL"]
[SourceTitle "playchess.com"]
[Source "ChessBase"]
[SourceQuality "1"]
[TimeControl "40/5400+30:1800+30"]

1. e4 {[%emt 0:00:00]} c6 {[%emt 0:00:00]} 2. Nc3 {[%emt 0:00:00]} d5 {[%emt 0:00:00]} 3. Nf3 {[%emt 0:00:02]} Bg4 {[%emt 0:00:00]} 4. h3 {[%emt 0:00:09]} Bxf3 {[%emt 0:00:00]} 5. Qxf3 {[%emt 0:00:05]} e6 {[%emt 0:00:02]} 6. d3 {[%emt 0:00:09]} Nf6 {[%emt 0:00:14]} 7. Bd2 {[%emt 0:00:23]} Nbd7 {[%emt 0:00:20]} 8. O-O-O {[%emt 0:00:07]} Bb4 {[%emt 0:00:57]} 9. a3 {[%emt 0:00:10]} Ba5 {[%emt 0:04:00]} 10. g4 {[%emt 0:01:10]} d4 {[%emt 0:00:22]} 11. Ne2 {[%emt 0:00:56]} Bxd2+ {[%emt 0:03:14]} 12. Rxd2 {[%emt 0:00:06]} Nc5 {[%emt 0:03:28]} 13. h4 {[%emt 0:03:28]} Nfd7 {[%emt 0:03:28]} 14. Qg3 {[%emt 0:00:47]} Qb6 {[%emt 0:12:07]} 15. Nxd4 {[%emt 0:11:01]} Na4 {[%emt 0:05:28]} 16. Nb3 {[%emt 0:00:28]} Ndc5 {[%emt 0:00:26]} 17. Be2 {[%emt 0:19:54]} Nxb3+ {[%emt 0:00:12]} 18. cxb3 {[%emt 0:00:02]} Nc5 {[%emt 0:00:36]} 19. Bd1 {[%emt 0:01:56]} Nxb3+ {[%emt 0:01:07]} 20. Bxb3 {[%emt 0:00:04]} Qxb3 {[%emt 0:00:05]} 21. Qe5 {[%emt 0:01:44]} f6 {[%emt 0:05:32]} 22. Qh5+ {[%emt 0:00:53]} g6 {[%emt 0:00:34]} 23. Qc5 {[%emt 0:00:13]} Qb6 {[%emt 0:02:30]} 24. Qc3 {[%emt 0:04:53]} O-O {[%emt 0:09:20]} 25. h5 {[%emt 0:11:33]} g5 {[%emt 0:01:08]} 26. f4 {[%emt 0:11:01]} Qe3 {[%emt 0:02:03]} 27. fxg5 {[%emt 0:06:47]} Qxg5 {[%emt 0:00:34]} 28. Qb3 {[%emt 0:03:13]} Rfe8 {[%emt 0:02:06]} 29. h6 {[%emt 0:04:45]} Re7 {[%emt 0:02:40]} 30. Qc3 {[%emt 0:03:46]} e5 {[%emt 0:04:29]} 31. Kc2 {[%emt 0:03:48]} Qxg4 {[%emt 0:01:42]} 32. Qc5 {[%emt 0:01:44]} Qe6 {[%emt 0:07:01]} 33. Rg2+ {[%emt 0:00:05]} Kh8 {[%emt 0:00:07]} 34. Rhg1 {[%emt 0:04:42]} b6 {[%emt 0:01:11]} 35. Qf2 {[%emt 0:01:29]} c5 {[%emt 0:02:13]} 36. Rg7 {[%emt 0:00:57]} Rae8 {[%emt 0:00:13]} 37. Qf5 {[%emt 0:03:16]} Qxf5 {[%emt 0:00:29]} 38. exf5 {[%emt 0:00:03]} a6 {[%emt 0:05:48]} 39. a4 {[%emt 0:01:14]} b5 {[%emt 0:06:08]} 40. a5 {[%emt 0:00:00]} c4 {[%emt 0:00:00]} 41. dxc4 {[%emt 0:14:46]} bxc4 {[%emt 0:00:21]} 42. Rxe7 {[%emt 0:00:59]} Rxe7 {[%emt 0:00:06]} 43. Rd1 {[%emt 0:00:03]} Kg8 {[%emt 0:00:50]} 44. Rd8+ {[%emt 0:01:19]} Kf7 {[%emt 0:00:02]} 45. Rh8 {[%emt 0:00:06]} Re8 {[%emt 0:00:21]} 46. Rxh7+ {[%emt 0:00:03]} Kg8 {[%emt 0:00:04]} 47. Rg7+ {[%emt 0:00:03]} Kh8 {[%emt 0:00:07]} 48. Ra7 {[%emt 0:03:26]} e4 {[%emt 0:05:16]} 49. Rxa6 {[%emt 0:00:04]} Re5 {[%emt 0:00:03]} 50. Rxf6 {[%emt 0:02:29]} Rxa5 {[%emt 0:00:04]} 51. Re6 {[%emt 0:00:37]} Rxf5 {[%emt 0:01:29]} 52. Rxe4 {[%emt 0:00:05]} Kh7 {[%emt 0:00:18]} 53. Rxc4 {[%emt 0:00:16]} Kxh6 {[%emt 0:00:08]} 54. Rg4 {[%emt 0:00:03]} Kh5 {[%emt 0:00:06]} 55. Rg8 {[%emt 0:00:10]} Rf3 {[%emt 0:01:00]} 56. b3 {[%emt 0:00:27]} Kh6 {[%emt 0:00:04]} 57. Kb2 {[%emt 0:00:05]} Kh7 {[%emt 0:00:03]} 58. Rg4 {[%emt 0:00:11]} Rf8 {[%emt 0:00:05]} 59. Rg3 {[%emt 0:01:02]} Rb8 {[%emt 0:00:15]} 60. Kc3 {[%emt 0:00:30]} Rc8+ {[%emt 0:00:03]} 61. Kb4 {[%emt 0:00:51]} Rb8+ {[%emt 0:00:05]} 62. Kc5 {[%emt 0:00:05]} Rc8+ {[%emt 0:00:03]} 63. Kd4 {[%emt 0:02:13]} Rd8+ {[%emt 0:00:03]} 64. Kc3 {[%emt 0:00:25]} Rc8+ {[%emt 0:00:01]} 65. Kb2 {[%emt 0:00:27]} Rb8 {[%emt 0:00:04]} 66. Rg4 {[%emt 0:00:05]} Kh6 {[%emt 0:00:04]} 67. b4 {[%emt 0:00:12]} Kh5 {[%emt 0:00:04]} 68. Rd4 {[%emt 0:04:27]} Kg5 {[%emt 0:00:05]} 69. Kb3 {[%emt 0:03:27]} Kf5 {[%emt 0:00:05]} 70. Kc4 {[%emt 0:01:12]} Ke5 {[%emt 0:00:28]} 71. Rd5+ {[%emt 0:01:09]} Ke6 {[%emt 0:00:02]} 72. b5 {[%emt 0:00:27]} Rc8+ {[%emt 0:00:06]} 73. Rc5 {[%emt 0:00:03]} Kd7 {[%emt 0:00:02]} 74. b6 {[%emt 0:00:44]} Ra8 {[%emt 0:01:19]} 75. Kb5 {[%emt 0:00:08]} Ra1 {[%emt 0:01:44]} 76. b7 {[%emt 0:00:26]} Rb1+ {[%emt 0:00:04]} 77. Ka6 {[%emt 0:00:02]} Ra1+ {[%emt 0:00:04]} 78. Kb6 {[%emt 0:00:03]} Rb1+ {[%emt 0:00:04]} 79. Ka7 {[%emt 0:00:09]} Ra1+ {[%emt 0:00:04]} 80. Kb8 {[%emt 0:00:03]} Ra2 {[%emt 0:00:05]} 81. Rc1 {[%emt 0:00:28]} Kd8 {[%emt 0:00:27]} 82. Rd1+ {[%emt 0:00:07]} Ke7 {[%emt 0:00:15]} 83. Rd4 {[%emt 0:01:13]} Ra1 {[%emt 0:00:22]} 84. Kc7 {[%emt 0:00:35]} Rc1+ {[%emt 0:00:05]} 85. Kb6 {[%emt 0:00:03]} Rb1+ {[%emt 0:00:04]} 86. Kc6 {[%emt 0:00:06]} Rb2 {[%emt 0:00:02]} 87. Rd5 {[%emt 0:00:53]} 1-0

[Event "2nd Irena Warakomska Memorial-A"]
[Site "Suwalki"]
[Date "2018.08.07"]
[Round "8"]
[White "Zaika, Daniil"]
[Black "Oglaza, Oskar"]
[Result "1/2-1/2"]
[ECO "E10"]
[WhiteElo "2213"]
[BlackElo "2364"]
[Annotator "NA"]
[PlyCount "80"]
[EventDate "2018.08.01"]
[EventType "swiss"]
[EventCountry "POL"]
[SourceTitle "playchess.com"]
[Source "ChessBase"]
[SourceQuality "1"]
[TimeControl "40/5400+30:1800+30"]

1. d4 {[%emt 0:00:00]} Nf6 {[%emt 0:00:00]} 2. c4 {[%emt 0:00:00]} e6 {[%emt 0:00:00]} 3. Nf3 {[%emt 0:00:14]} d5 {[%emt 0:00:16]} 4. g3 {[%emt 0:00:23]} Bb4+ {[%emt 0:00:22]} 5. Nbd2 {[%emt 0:09:57]} O-O {[%emt 0:00:23]} 6. Bg2 {[%emt 0:00:07]} b6 {[%emt 0:00:21]} 7. O-O {[%emt 0:00:52]} Bb7 {[%emt 0:00:12]} 8. Ne5 {[%emt 0:00:56]} Nc6 {[%emt 0:00:55]} 9. Ndf3 {[%emt 0:16:35]} Nxe5 {[%emt 0:08:45]} 10. Nxe5 {[%emt 0:00:32]} Be7 {[%emt 0:00:28]} 11. b3 {[%emt 0:08:18]} Rc8 {[%emt 0:08:26]} 12. Bb2 {[%emt 0:06:29]} c5 {[%emt 0:06:23]} 13. dxc5 {[%emt 0:02:32]} bxc5 {[%emt 0:00:36]} 14. Qc2 {[%emt 0:02:23]} Qb6 {[%emt 0:01:57]} 15. e3 {[%emt 0:00:45]} Rfd8 {[%emt 0:02:39]} 16. Rfd1 {[%emt 0:04:20]} Ne8 {[%emt 0:02:51]} 17. cxd5 {[%emt 0:06:11]} exd5 {[%emt 0:02:16]} 18. h4 {[%emt 0:00:41]} Nf6 {[%emt 0:04:21]} 19. Rd2 {[%emt 0:05:39]} Bd6 {[%emt 0:16:21]} 20. Rad1 {[%emt 0:03:32]} Qc7 {[%emt 0:04:41]} 21. Qf5 {[%emt 0:01:54]} Qe7 {[%emt 0:15:14]} 22. Ng4 {[%emt 0:02:00]} Nxg4 {[%emt 0:07:56]} 23. Qxg4 {[%emt 0:00:26]} d4 {[%emt 0:00:04]} 24. exd4 {[%emt 0:02:01]} c4 {[%emt 0:01:25]} 25. bxc4 {[%emt 0:02:14]} Bxg2 {[%emt 0:01:43]} 26. Kxg2 {[%emt 0:00:08]} Rxc4 {[%emt 0:00:06]} 27. Qf3 {[%emt 0:02:26]} Re8 {[%emt 0:01:22]} 28. d5 {[%emt 0:02:52]} Qe4 {[%emt 0:04:11]} 29. Qxe4 {[%emt 0:06:45]} Rexe4 {[%emt 0:00:25]} 30. Kf3 {[%emt 0:01:03]} f5 {[%emt 0:02:00]} 31. Rc1 {[%emt 0:04:37]} Rxc1 {[%emt 0:01:31]} 32. Bxc1 {[%emt 0:00:03]} Rc4 {[%emt 0:00:33]} 33. Bb2 {[%emt 0:00:09]} Kf7 {[%emt 0:00:23]} 34. Bd4 {[%emt 0:04:55]} a5 {[%emt 0:01:06]} 35. Be3 {[%emt 0:00:42]} Rb4 {[%emt 0:00:36]} 36. Rd4 {[%emt 0:01:42]} Rb2 {[%emt 0:01:13]} 37. Rd2 {[%emt 0:00:08]} Rb4 {[%emt 0:00:18]} 38. Ke2 {[%emt 0:02:15]} f4 {[%emt 0:02:53]} 39. gxf4 {[%emt 0:00:43]} Bxf4 {[%emt 0:00:04]} 40. d6 {[%emt 0:00:00]} Ke8 {[%emt 0:00:00]} 1/2-1/2